bitfinex/quotes_SOLUSD_20220130
["timestamp","ask_amount","ask_price","bid_price","bid_amount"]
[1643586716365,36.19790792,93.167,93.101,6.0]
[1643586716564,36.19790792,93.167,93.11,16.11]
[1643586716766,36.19790792,93.167,93.111,0.25]
[1643586716963,36.19790792,93.167,93.12,6.0]
[1643586717166,1.46085112,93.213,93.111,0.25]
[1643586717365,1.46085112,93.213,93.113,6.0]
[1643586717565,6.0,93.203,93.111,0.25]
[1643586717765,23.6471,93.202,93.111,0.25]
[1643586717965,23.6471,93.202,93.109,0.25]
[1643586718166,45.20823194,93.201,93.109,0.25]
[1643586718468,0.25,93.2,93.109,1.4876749]
[1643586718665,0.25,93.2,93.12,16.109]
[1643586718867,0.25,93.2,93.121,25.0678]
[1643586719067,0.25,93.2,93.131,6.0]
[1643586719269,0.25,93.2,93.132,25.0678]
[1643586719666,0.25,93.2,93.142,6.0]
[1643586719865,0.25,93.2,93.143,0.25]
[1643586721468,45.20823194,93.201,93.143,0.25]
[1643586722269,45.20823194,93.201,93.142,6.0]
[1643586722867,0.25,93.2,93.142,6.0]
[1643586723875,0.25,93.2,93.143,0.25]
[1643586724074,0.25,93.2,93.142,6.0]
[1643586724276,0.25,93.2,93.143,0.25]
[1643586725276,0.25,93.219,93.143,0.25]
[1643586725476,6.0,93.21,93.143,0.25]
[1643586725677,0.25,93.209,93.142,6.0]
[1643586725877,24.3089,93.209,93.142,6.0]
[1643586726279,41.55838209,93.208,93.142,6.0]
[1643586726679,0.25,93.207,93.142,6.0]
[1643586727082,0.25,93.207,93.143,0.25]
[1643586727683,0.25,93.207,93.15,6.0]
[1643586727981,0.25,93.208,93.151,0.25]
[1643586728182,0.25,93.208,93.154,6.0]
[1643586728381,0.25,93.208,93.155,0.25]
[1643586728581,0.25,93.208,93.16,16.102]
[1643586728782,0.25,93.223,93.161,0.25]
[1643586728981,0.25,93.223,93.17,6.0]
[1643586729183,1.46085112,93.241,93.17,6.0]
[1643586729383,42.836132,93.242,93.171,0.25]
[1643586729585,42.836132,93.242,93.171,6.25]
[1643586729783,22.5545,93.241,93.171,6.25]
[1643586730582,0.25,93.223,93.171,6.25]
[1643586731387,0.25,93.223,93.171,6.0]
[1643586731584,0.25,93.223,93.15,15.41]
[1643586731785,25.0727,93.223,93.162,0.25]
[1643586732585,25.0727,93.223,93.15,15.16]
[1643586733786,45.34995653,93.212,93.15,15.16]
[1643586734186,6.0,93.202,93.126,24.1595]
[1643586734388,24.3375,93.201,93.15,6.0]
[1643586734586,0.25,93.201,93.136,6.0]
[1643586735385,0.25,93.201,93.137,24.4166]
[1643586735586,23.7041,93.211,93.147,6.0]
[1643586737488,23.7041,93.211,93.15,6.0]
[1643586738088,0.25,93.211,93.15,6.0]
[1643586738288,0.25,93.211,93.151,0.25]
[1643586739290,0.25,93.211,93.15,16.104]
[1643586739589,0.25,93.211,93.147,6.0]
[1643586739787,0.25,93.211,93.148,0.25]
[1643586739990,0.25,93.211,93.15,6.0]
[1643586740592,0.25,93.211,93.151,0.25]
[1643586741793,0.25,93.211,93.148,0.25]
[1643586742994,0.25,93.211,93.147,6.0]
[1643586744194,0.25,93.211,93.15,6.0]
[1643586746396,0.25,93.211,93.151,0.25]
[1643586750824,0.25,93.211,93.15,6.0]
[1643586751029,24.5668,93.211,93.15,6.0]
[1643586752226,24.5668,93.211,93.151,0.25]
[1643586755130,0.25,93.211,93.151,0.25]
[1643586756931,23.2407,93.211,93.15,16.104]
[1643586757131,23.2407,93.211,93.151,0.25]
[1643586758034,23.2407,93.211,93.152,6.0]
[1643586758434,23.2407,93.211,93.153,0.25]
[1643586759532,23.2407,93.211,93.154,6.0]
[1643586759733,1.46085112,93.236,93.161,107.0]
[1643586760132,1.46085112,93.259,93.172,107.0]
[1643586760332,1.46085112,93.264,93.174,1.4876749]
[1643586760533,26.52576985,93.285,93.173,0.25]
[1643586760534,1.46085112,93.267,93.184,6.0]
[1643586760735,23.5758,93.285,93.184,6.0]
[1643586760736,1.46085112,93.264,93.184,6.0]
[1643586760932,26.12225112,93.263,93.185,23.4593]
[1643586761134,6.0,93.253,93.185,23.4593]
[1643586761335,6.0,93.247,93.158,1.4876749]
[1643586761533,6.0,93.238,93.16,15.41]
[1643586761735,1.46085112,93.228,93.138,1.4876749]
[1643586762236,1.46085112,93.215,93.127,1.4876749]
[1643586762433,24.49935112,93.214,93.127,1.4876749]
[1643586762633,6.0,93.204,93.126,1.4876749]
[1643586762836,65.94044266,93.203,93.125,1.4876749]
[1643586763033,65.94044266,93.203,93.135,6.0]
[1643586763633,65.94044266,93.203,93.131,7.4876749]
[1643586763834,42.90194266,93.203,93.136,2.4859536]
[1643586764036,42.90194266,93.203,93.146,6.0]
[1643586764435,42.90194266,93.203,93.136,2.4859536]
[1643586764633,42.90194266,93.203,93.146,6.0]
[1643586766036,42.90194266,93.203,93.144,6.0]
[1643586766337,42.90194266,93.203,93.132,6.0]
[1643586766537,42.90194266,93.203,93.14,6.0]
[1643586767137,42.90194266,93.203,93.141,0.25]
[1643586767335,42.90194266,93.203,93.139,6.0]
[1643586767536,42.90194266,93.203,93.143,6.0]
[1643586767736,42.90194266,93.203,93.139,6.0]
[1643586767939,42.90194266,93.203,93.14,6.25]
[1643586768538,42.90194266,93.203,93.141,6.0]
[1643586768738,42.90194266,93.203,93.15,6.0]
[1643586768938,42.90194266,93.203,93.142,0.25]
[1643586769139,42.90194266,93.203,93.142,6.25]
[1643586771841,42.90194266,93.203,93.142,0.25]
[1643586772042,42.90194266,93.203,93.152,6.0]
[1643586772640,42.90194266,93.203,93.141,0.25]
[1643586772841,42.90194266,93.203,93.132,7.4876749]
[1643586772842,42.90194266,93.203,93.133,0.25]
[1643586773042,42.90194266,93.203,93.142,6.0]
[1643586773446,42.90194266,93.203,93.143,0.25]
[1643586774042,42.90194266,93.203,93.142,6.0]
[1643586774444,42.90194266,93.203,93.126,1.4876749]
[1643586774643,23.9882,93.202,93.124,1.4876749]
[1643586774842,23.9882,93.202,93.126,2.4859536]
[1643586774843,0.25,93.201,93.126,2.4859536]
[1643586775044,0.25,93.201,93.128,1.4876749]
[1643586775472,0.25,93.201,93.129,0.25]
[1643586775746,0.25,93.201,93.138,6.0]
[1643586776149,0.25,93.201,93.14,6.0]
[1643586776347,0.25,93.201,93.141,0.25]
[1643586776746,0.25,93.201,93.14,6.0]
[1643586776947,23.9882,93.202,93.14,6.0]
[1643586777846,23.9882,93.202,93.141,0.25]
[1643586778650,23.9882,93.202,93.143,6.0]
[1643586778849,23.9882,93.202,93.144,0.25]
[1643586779249,0.25,93.201,93.144,0.25]
[1643586780056,0.25,93.201,93.14,16.106]
[1643586780253,0.25,93.201,93.136,1.4876749]
[1643586780254,1.46085112,93.224,93.15,6.0]
[1643586780453,23.4013,93.264,93.15,6.0]
[1643586780454,1.46085112,93.237,93.15,21.41]
[1643586780654,1.46085112,93.25,93.162,1.4876749]
[1643586780854,1.46085112,93.25,93.17,15.41]
[1643586780855,0.25,93.236,93.17,15.41]
[1643586781159,39.80680068,93.249,93.18,6.0]
[1643586781353,39.80680068,93.249,93.183,1.4876749]
[1643586781554,39.80680068,93.249,93.2,16.095]
[1643586781853,39.80680068,93.249,93.193,6.0]
[1643586782252,39.80680068,93.249,93.191,6.0]
[1643586782654,39.80680068,93.249,93.19,6.0]
[1643586782853,0.25,93.248,93.19,6.0]
[1643586785856,6.0,93.239,93.18,15.41]
[1643586786058,0.25,93.248,93.16,15.41]
[1643586786256,0.25,93.248,93.171,6.0]
[1643586786257,22.8205,93.248,93.171,6.0]
[1643586786459,22.8205,93.248,93.17,6.0]
[1643586786858,22.8205,93.248,93.163,6.0]
[1643586787059,22.8205,93.248,93.17,6.0]
[1643586789563,6.0,93.238,93.17,6.0]
[1643586789764,6.0,93.238,93.171,0.25]
[1643586789962,0.25,93.237,93.171,0.25]
[1643586790589,1.46085112,93.259,93.172,2.47937951]
[1643586790790,1.46085112,93.261,93.173,24.7502]
[1643586790988,0.3,93.538,93.173,24.7502]
[1643586790989,1.46085112,93.275,93.2,16.091]
[1643586791195,1.46085112,93.278,93.201,130.3019]
[1643586791390,1.46085112,93.295,93.21,15.41]
[1643586791591,48.05098687,93.3,93.22,6.0]
[1643586791792,46.59013575,93.3,93.23,15.41]
[1643586791990,46.59013575,93.3,93.24,6.0]
[1643586792189,46.59013575,93.3,93.24,21.41]
[1643586792389,46.59013575,93.3,93.241,107.25]
[1643586792589,1.46085112,93.313,93.251,6.0]
[1643586792790,0.25,93.312,93.241,2.47937951]
[1643586792991,2.95669142,93.301,93.251,6.0]
[1643586793190,1.46085112,93.312,93.251,6.0]
[1643586793391,2.95669142,93.321,93.251,6.0]
[1643586793392,0.25,93.3,93.251,6.0]
[1643586793890,0.25,93.3,93.241,6.0]
[1643586794294,0.25,93.313,93.242,0.25]
[1643586795491,0.25,93.313,93.243,2.47937951]
[1643586795890,0.25,93.313,93.253,6.0]
[1643586796490,0.25,93.313,93.244,0.25]
[1643586796894,0.25,93.313,93.243,0.25]
[1643586797094,1.46085112,93.329,93.25,6.0]
[1643586797291,2.32326707,93.33,93.25,6.0]
[1643586797292,2.32326707,93.33,93.251,24.0843]
[1643586797492,1.46085112,93.343,93.26,16.084]
[1643586797691,22.719,93.347,93.261,6.0]
[1643586797895,1.46085112,93.359,93.271,107.0]
[1643586798099,1.46085112,93.37,93.281,6.0]
[1643586798299,1.46085112,93.37,93.282,25.0909]
[1643586798499,1.46085112,93.377,93.292,6.0]
[1643586798700,1.46085112,93.389,93.305,0.3183049]
[1643586798900,214.56674462,93.427,93.305,0.3183049]
[1643586798901,1.46085112,93.415,93.305,0.3183049]
[1643586799101,214.56674462,93.427,93.32,15.41]
[1643586799301,214.56674462,93.427,93.34,0.31781078]
[1643586799506,214.56674462,93.427,93.35,15.41]
[1643586799707,1.46085112,93.457,93.351,20.0]
[1643586799903,15.94471654,93.52,93.351,20.0]
[1643586799904,1.46085112,93.482,93.361,107.0]
[1643586800105,1.46085112,93.482,93.38,0.30873418]
[1643586800304,1.46085112,93.482,93.39,15.41]
[1643586800510,0.53471654,93.52,93.39,15.41]
[1643586800511,1.46085112,93.512,93.39,15.41]
[1643586800713,1.46085112,93.512,93.401,107.0]
[1643586800903,0.53471654,93.52,93.42,16.053]
[1643586801105,0.53471654,93.52,93.43,21.41]
[1643586801306,0.53471654,93.52,93.431,0.25]
[1643586801507,0.53471654,93.52,93.432,6.0]
[1643586801704,0.53471654,93.52,93.432,8.47932738]
[1643586801904,0.53471654,93.52,93.441,6.0]
[1643586802107,0.53471654,93.52,93.45,31.459]
[1643586802305,0.53471654,93.52,93.451,0.25]
[1643586802505,0.53471654,93.52,93.46,6.0]
[1643586802705,0.53471654,93.52,93.46,21.41]
[1643586802906,0.53471654,93.52,93.461,0.25]
[1643586803204,0.53471654,93.52,93.462,6.0]
[1643586803404,0.53471654,93.52,93.46,21.41]
[1643586803604,0.53471654,93.52,93.46,6.0]
[1643586803805,45.10412438,93.519,93.46,6.0]
[1643586804007,45.10412438,93.519,93.43,15.41]
[1643586804204,0.25,93.518,93.45,6.0]
[1643586804405,0.25,93.518,93.44,6.0]
[1643586804607,0.25,93.518,93.431,2.72932738]
[1643586804805,0.25,93.518,93.43,15.41]
[1643586805610,6.0,93.509,93.43,15.41]
[1643586805808,0.25,93.508,93.43,15.41]
[1643586806012,0.25,93.508,93.4,16.06]
[1643586806211,0.25,93.508,93.41,15.41]
[1643586806410,0.25,93.508,93.411,0.25]
[1643586807009,0.25,93.508,93.42,6.0]
[1643586807212,0.25,93.508,93.411,0.25]
[1643586807213,2.95669142,93.507,93.4,15.41]
[1643586807618,6.0,93.497,93.306,23.0177]
[1643586807810,6.0,93.497,93.377,6.0]
[1643586807811,34.23457959,93.496,93.377,6.0]
[1643586808022,6.0,93.486,93.381,6.0]
[1643586808418,0.25,93.485,93.39,6.0]
[1643586808819,0.25,93.485,93.391,0.25]
[1643586809021,0.25,93.485,93.392,6.0]
[1643586809641,0.25,93.485,93.38,6.0]
[1643586809847,0.25,93.485,93.37,15.41]
[1643586810141,2.95669142,93.484,93.347,19.84137992]
[1643586810342,0.25,93.483,93.35,15.41]
[1643586810643,45.58375114,93.473,93.36,16.068]
[1643586810845,0.25,93.472,93.361,0.25]
[1643586811044,6.0,93.463,93.37,6.0]
[1643586811546,0.25,93.462,93.372,113.0]
[1643586811742,2.1395921,93.441,93.372,113.0]
[1643586811943,35.02858474,93.44,93.38,6.0]
[1643586812142,35.27858474,93.44,93.373,0.25]
[1643586812544,35.27858474,93.44,93.374,2.47932738]
[1643586812945,35.27858474,93.44,93.384,6.0]
[1643586813143,35.27858474,93.44,93.38,16.064]
[1643586813343,35.27858474,93.44,93.363,2.47932738]
[1643586813544,35.27858474,93.44,93.373,6.0]
[1643586816044,35.27858474,93.44,93.37,16.066]
[1643586816245,35.27858474,93.44,93.371,0.25]
[1643586817848,35.27858474,93.44,93.37,16.066]
[1643586818048,35.27858474,93.44,93.371,0.25]
[1643586818249,0.25,93.44,93.38,16.064]
[1643586818449,2.1395921,93.441,93.381,0.25]
[1643586818852,0.25,93.44,93.381,2.47932738]
[1643586819053,6.0,93.431,93.349,17.25689314]
[1643586819252,45.77549051,93.43,93.349,17.25689314]
[1643586819453,46.02549051,93.43,93.348,2.47932738]
[1643586819652,46.02549051,93.43,93.35,18.54832738]
[1643586819852,6.0,93.42,93.35,18.54832738]
[1643586820055,2.1395921,93.441,93.36,6.0]
[1643586820258,2.1395921,93.441,93.361,107.25]
[1643586820456,2.1395921,93.441,93.361,130.50689314]
[1643586820657,2.1395921,93.441,93.362,17.25689314]
[1643586820855,2.1395921,93.441,93.371,6.0]
[1643586821055,2.1395921,93.441,93.38,15.41]
[1643586821254,2.1395921,93.441,93.39,16.06]
[1643586821458,2.1395921,93.441,93.391,107.0]
[1643586821654,2.1395921,93.441,93.391,115.72784908]
[1643586821857,1.91516138,93.47,93.391,109.72784908]
[1643586822055,6.0,93.46,93.391,109.72784908]
[1643586822255,0.25,93.459,93.391,109.72784908]
[1643586822457,0.25,93.459,93.4,16.061]
[1643586822859,6.0,93.46,93.401,107.25]
[1643586823063,43.9924519,93.465,93.401,107.25]
[1643586824157,0.25,93.464,93.401,107.25]
[1643586825161,0.25,93.464,93.402,2.47797989]
[1643586825561,6.0,93.455,93.38,15.41]
[1643586825762,6.0,93.455,93.36,15.41]
[1643586825961,0.25,93.454,93.36,15.41]
[1643586826969,107.0,93.453,93.36,15.41]
[1643586827361,6.0,93.455,93.36,15.41]
[1643586827362,46.41753353,93.442,93.36,15.41]
[1643586827761,0.25,93.441,93.361,0.25]
[1643586827985,6.0,93.432,93.36,31.477]
[1643586828162,6.0,93.432,93.361,0.25]
[1643586828363,0.25,93.431,93.36,31.477]
[1643586828564,107.25,93.431,93.34,15.41]
[1643586828763,33.59493337,93.42,93.35,6.0]
[1643586828963,33.59493337,93.42,93.347,6.0]
[1643586829165,0.25,93.419,93.341,0.25]
[1643586829565,0.25,93.419,93.35,6.0]
[1643586829765,0.25,93.419,93.351,0.25]
[1643586830572,0.25,93.419,93.35,6.0]
[1643586830966,6.0,93.41,93.35,22.069]
[1643586831170,0.25,93.419,93.35,22.069]
[1643586832167,0.25,93.419,93.351,0.25]
[1643586832569,33.59493337,93.42,93.351,0.25]
[1643586833770,0.25,93.419,93.36,16.067]
[1643586834173,0.25,93.419,93.351,0.25]
[1643586834375,0.25,93.419,93.362,6.0]
[1643586835175,33.59493337,93.42,93.363,0.25]
[1643586835375,0.25,93.419,93.363,0.25]
[1643586835591,6.0,93.41,93.363,0.25]
[1643586835795,0.25,93.409,93.35,6.0]
[1643586835991,6.0,93.41,93.35,6.0]
[1643586836191,0.25,93.409,93.35,6.0]
[1643586836595,0.25,93.409,93.351,2.48109654]
[1643586836792,0.25,93.409,93.351,109.48109654]
[1643586836993,0.25,93.409,93.361,6.0]
[1643586837193,0.25,93.419,93.361,6.0]
[1643586837393,0.25,93.419,93.362,0.25]
[1643586837593,0.25,93.419,93.362,6.25]
[1643586838395,0.25,93.419,93.36,16.068]
[1643586838793,0.25,93.419,93.352,2.48109654]
[1643586838996,0.25,93.419,93.362,6.0]
[1643586839999,1.46085112,93.441,93.363,0.25]
[1643586840200,1.46085112,93.449,93.37,15.41]
[1643586840395,0.25,93.44,93.371,0.25]
[1643586840597,0.25,93.44,93.381,107.0]
[1643586840902,0.25,93.44,93.382,0.25]
[1643586841094,0.25,93.44,93.391,6.0]
[1643586841296,0.25,93.455,93.392,0.25]
[1643586841695,0.25,93.456,93.392,0.25]
[1643586842095,6.0,93.447,93.392,0.25]
[1643586842295,0.25,93.446,93.392,0.25]
[1643586842496,0.25,93.446,93.391,0.25]
[1643586842797,113.3,93.492,93.4,6.0]
[1643586842798,1.46085112,93.465,93.4,6.0]
[1643586842995,1.46085112,93.468,93.4,6.0]
[1643586843210,1.46085112,93.471,93.401,0.25]
[1643586843504,3.3760125,93.47,93.41,6.0]
[1643586843904,1.91516138,93.47,93.411,0.25]
[1643586844108,1.91516138,93.47,93.411,6.25]
[1643586845401,0.25,93.469,93.411,6.25]
[1643586845603,1.91516138,93.47,93.42,6.0]
[1643586845802,1.91516138,93.47,93.421,6.0]
[1643586846403,1.46085112,93.484,93.421,6.0]
[1643586846602,1.46085112,93.491,93.43,6.0]
[1643586846803,44.9150632,93.492,93.431,107.25]
[1643586847003,0.25,93.49,93.431,113.25]
[1643586847412,0.25,93.49,93.44,16.054]
[1643586847605,0.53471654,93.52,93.44,16.054]
[1643586847606,1.46085112,93.501,93.45,6.0]
[1643586847905,1.46085112,93.506,93.451,107.25]
[1643586848106,1.99556766,93.52,93.46,15.41]
[1643586848306,0.53471654,93.52,93.461,0.25]
[1643586848610,0.53471654,93.52,93.47,6.0]
[1643586848807,0.53471654,93.52,93.48,15.41]
[1643586849004,1.46085112,93.552,93.49,6.0]
[1643586849205,1.46085112,93.567,93.5,15.41]
[1643586849404,1.46085112,93.565,93.501,0.25]
[1643586849606,1.46085112,93.565,93.51,6.0]
[1643586849805,1.46085112,93.568,93.52,16.04]
[1643586850006,1.46085112,93.571,93.521,107.0]
[1643586850207,0.96085112,93.583,93.521,0.25]
[1643586850409,0.25,93.57,93.521,0.25]
[1643586850610,0.25,93.57,93.523,6.0]
[1643586850813,0.25,93.57,93.523,113.0]
[1643586851007,0.96085112,93.584,93.524,0.25]
[1643586851212,36.19189155,93.603,93.524,0.25]
[1643586851411,0.05,93.602,93.525,20.0]
[1643586851616,2.1395921,93.561,93.526,0.1]
[1643586851813,2.1395921,93.561,93.53,6.0]
[1643586852212,2.1395921,93.561,93.531,0.25]
[1643586852512,2.1395921,93.561,93.533,6.0]
[1643586852913,2.26240406,93.61,93.534,0.25]
[1643586853115,6.0,93.6,93.534,0.25]
[1643586853314,0.25,93.599,93.534,0.25]
[1643586853513,0.25,93.599,93.54,6.0]
[1643586853718,0.25,93.599,93.531,0.1]
[1643586854114,6.25,93.599,93.531,0.35]
[1643586855119,6.25,93.599,93.531,0.1]
[1643586855120,9.20669142,93.599,93.531,0.1]
[1643586855317,9.20669142,93.599,93.511,0.1]
[1643586855516,9.20669142,93.599,93.501,0.1]
[1643586855716,9.20669142,93.599,93.481,0.1]
[1643586855919,9.20669142,93.599,93.481,0.35]
[1643586857316,107.0,93.598,93.481,0.35]
[1643586857517,6.0,93.588,93.481,0.35]
[1643586857916,43.24788651,93.586,93.481,0.35]
[1643586858117,6.0,93.576,93.481,0.35]
[1643586858321,0.25,93.575,93.481,0.35]
[1643586858517,9.20669142,93.575,93.481,0.35]
[1643586858717,9.20669142,93.575,93.481,0.1]
[1643586858718,9.30669142,93.575,93.481,0.1]
[1643586858924,2.95669142,93.574,93.481,0.1]
[1643586859118,2.95669142,93.574,93.392,16.2544]
[1643586859119,38.19259888,93.563,93.451,0.1]
[1643586859421,23.3068,93.562,93.42,15.41]
[1643586859617,40.0,93.551,93.42,15.41]
[1643586859817,0.25,93.55,93.44,16.054]
[1643586860023,37.90648069,93.54,93.441,107.0]
[1643586860216,37.90648069,93.54,93.441,107.25]
[1643586860416,6.0,93.53,93.442,2.46426464]
[1643586860818,0.25,93.529,93.45,16.052]
[1643586861220,0.25,93.529,93.451,0.25]
[1643586862520,0.25,93.529,93.46,16.051]
[1643586862922,0.25,93.529,93.461,0.25]
[1643586863323,0.25,93.529,93.46,16.051]
[1643586864526,6.0,93.53,93.461,109.46316104]
[1643586864725,6.0,93.551,93.48,16.047]
[1643586864924,6.0,93.551,93.462,2.46316104]
[1643586865124,6.0,93.564,93.462,2.46316104]
[1643586865323,6.0,93.564,93.463,0.25]
[1643586865524,33.99404761,93.563,93.463,0.25]
[1643586865725,33.99404761,93.563,93.464,2.46316104]
[1643586865926,6.0,93.553,93.465,0.25]
[1643586866429,0.25,93.552,93.466,2.46316104]
[1643586866828,0.25,93.552,93.452,2.46316104]
[1643586867028,0.25,93.552,93.45,15.41]
[1643586868033,107.25,93.552,93.45,31.463]
[1643586868230,0.25,93.552,93.45,31.463]
[1643586868431,41.00795871,93.541,93.451,2.71316104]
[1643586868632,6.0,93.531,93.451,2.71316104]
[1643586868831,0.25,93.53,93.451,2.71316104]
[1643586869032,0.25,93.53,93.451,109.71316104]
[1643586869447,107.25,93.53,93.451,2.46316104]
[1643586869647,107.25,93.53,93.45,15.41]
[1643586869648,6.0,93.52,93.45,15.41]
[1643586869848,37.22247804,93.519,93.45,15.41]
[1643586870652,37.22247804,93.519,93.45,31.463]
[1643586871053,37.22247804,93.519,93.451,0.25]
[1643586871653,37.22247804,93.519,93.45,15.41]
[1643586872052,37.22247804,93.519,93.426,2.46316104]
[1643586872253,37.22247804,93.519,93.44,16.054]
[1643586872753,37.22247804,93.519,93.441,0.25]
[1643586874856,37.22247804,93.519,93.44,16.054]
[1643586875055,6.0,93.509,93.44,16.054]
[1643586875456,0.25,93.508,93.44,16.054]
[1643586875656,0.25,93.508,93.441,2.46316104]
[1643586876055,0.25,93.508,93.44,16.054]
[1643586877260,0.25,93.543,93.441,0.25]
[1643586877558,6.25,93.543,93.45,16.052]
[1643586877760,41.73520332,93.542,93.45,16.052]
[1643586878159,6.0,93.532,93.45,16.052]
[1643586878359,6.0,93.532,93.451,109.71316104]
[1643586878561,6.0,93.545,93.461,6.0]
[1643586879062,6.0,93.545,93.462,107.25]
[1643586879466,6.0,93.545,93.462,109.71316104]
[1643586879661,0.25,93.544,93.462,109.71316104]
[1643586879860,0.25,93.544,93.47,16.049]
[1643586880063,0.25,93.544,93.471,107.0]
[1643586880261,0.25,93.544,93.471,107.25]
[1643586880464,6.0,93.545,93.471,109.71316104]
[1643586880764,24.2943,93.555,93.482,107.0]
[1643586880964,6.0,93.545,93.472,2.46316104]
[1643586881166,6.0,93.545,93.49,16.046]
[1643586881369,6.0,93.564,93.49,16.046]
[1643586881566,2.97116771,93.579,93.5,6.0]
[1643586881766,45.4209,93.584,93.501,0.25]
[1643586881968,2.97116771,93.59,93.502,107.0]
[1643586882265,2.26240406,93.61,93.51,16.042]
[1643586882266,2.97116771,93.603,93.51,16.042]
[1643586882466,2.97116771,93.608,93.512,6.0]
[1643586882665,2.94507861,93.609,93.52,6.0]
[1643586882865,0.25,93.608,93.521,0.25]
[1643586883065,0.25,93.608,93.53,15.41]
[1643586883265,0.25,93.608,93.54,16.037]
[1643586883465,2.94507861,93.607,93.54,16.037]
[1643586883865,0.25,93.606,93.54,16.037]
[1643586884867,0.25,93.609,93.54,16.037]
[1643586885068,2.94582066,93.608,93.54,16.037]
[1643586885267,0.25,93.607,93.54,16.037]
[1643586885668,0.25,93.607,93.541,0.25]
[1643586886569,0.25,93.609,93.541,0.25]
[1643586886768,0.25,93.609,93.54,16.037]
[1643586886973,0.25,93.609,93.53,15.41]
[1643586887172,0.25,93.609,93.532,0.25]
[1643586887670,0.25,93.609,93.53,15.41]
[1643586887874,6.0,93.6,93.53,15.41]
[1643586888271,0.25,93.599,93.53,15.41]
[1643586889074,0.25,93.599,93.48,53.474]
[1643586889075,8.86830278,93.598,93.48,15.41]
[1643586889276,15.41,93.59,93.46,15.41]
[1643586889474,6.0,93.588,93.45,15.41]
[1643586889775,41.04111394,93.578,93.451,107.0]
[1643586889973,49.3299,93.577,93.46,16.051]
[1643586890174,6.0,93.568,93.46,15.41]
[1643586890376,6.25,93.567,93.46,15.41]
[1643586890576,38.69876721,93.556,93.46,15.41]
[1643586890774,0.25,93.555,93.46,15.41]
[1643586890975,6.0,93.546,93.46,15.41]
[1643586891379,6.25,93.545,93.46,15.41]
[1643586891575,6.0,93.544,93.46,15.41]
[1643586891775,0.25,93.543,93.46,15.41]
[1643586891977,43.30442822,93.534,93.46,31.461]
[1643586892380,0.25,93.533,93.46,31.461]
[1643586892576,0.25,93.533,93.46,15.41]
[1643586892577,6.0,93.524,93.46,15.41]
[1643586892777,0.25,93.523,93.46,15.41]
[1643586895802,6.0,93.524,93.46,15.41]
[1643586897001,2.95669142,93.523,93.46,15.41]
[1643586897202,3.20669142,93.523,93.46,15.41]
[1643586897403,3.20669142,93.523,93.423,77.24381921]
[1643586897404,42.6027003,93.512,93.43,16.056]